fUST/lending_fUST_20260114
["ID","MTS","AMOUNT","RATE_DAILY","PERIOD"]
[401819464,1768381805839,-500.0,9.623e-05,2]
[401819465,1768381812480,-300.0,9.623e-05,2]
[401819466,1768381814102,-162.28116241,9.623e-05,2]
[401819467,1768381822081,233.13,5e-05,2]
[401819468,1768381824299,-92.71883759,9.623e-05,2]
[401819502,1768381831760,-540.90054673,9.657e-05,2]
[401819504,1768381831770,-186.0,9.657e-05,2]
[401819506,1768381831779,-300.0,9.657e-05,2]
[401819508,1768381831787,-300.0,9.657e-05,2]
[401819510,1768381831797,-1200.0,9.657e-05,2]
[401819512,1768381831805,-500.0,9.658e-05,2]
[401819514,1768381831814,-7908.08070047,9.658e-05,2]
[401819517,1768381831831,-4986.70812462,9.658e-05,2]
[401819519,1768381831843,-534.64380724,9.658e-05,2]
[401819521,1768381831853,-923.89999976,9.658e-05,2]
[401819524,1768381831870,-718.8628463,9.658e-05,2]
[401819594,1768381837873,-34927.80452161,9.658e-05,2]
[401819595,1768381837883,-500.0,9.658e-05,2]
[401819596,1768381837892,-500.0,9.658e-05,2]
[401819597,1768381837901,-500.0,9.658e-05,2]
[401819598,1768381837910,-389.79848523,9.658e-05,2]
[401819599,1768381837919,-423.25390712,9.658e-05,2]
[401819600,1768381837928,-500.0,9.658e-05,2]
[401819601,1768381837937,-500.0,9.658e-05,2]
[401819602,1768381837946,-500.0,9.658e-05,2]
[401819603,1768381837955,-500.0,9.658e-05,2]
[401819604,1768381837964,-500.0,9.658e-05,2]
[401819605,1768381837973,-500.0,9.658e-05,2]
[401819607,1768381837982,-500.0,9.658e-05,2]
[401819608,1768381837991,-354.77391907,9.658e-05,2]
[401819609,1768381838000,-500.0,9.658e-05,2]
[401819610,1768381838010,-331.10607494,9.658e-05,2]
[401819611,1768381838019,-550.0,9.658e-05,2]
[401819612,1768381838029,-600.0,9.658e-05,2]
[401819613,1768381838040,-500.0,9.658e-05,2]
[401819614,1768381838050,-500.0,9.658e-05,2]
[401819615,1768381838059,-500.0,9.658e-05,2]
[401819616,1768381838068,-500.0,9.658e-05,2]
[401819617,1768381838078,-500.0,9.658e-05,2]
[401819618,1768381838087,-500.0,9.658e-05,2]
[401819619,1768381838097,-500.0,9.658e-05,2]
[401819620,1768381838107,-500.0,9.658e-05,2]
[401819621,1768381838116,-500.0,9.658e-05,2]
[401819622,1768381838126,-500.0,9.658e-05,2]
[401819623,1768381838135,-500.0,9.658e-05,2]
[401819624,1768381838144,-500.0,9.658e-05,2]
[401819625,1768381838153,-500.0,9.658e-05,2]
[401819626,1768381838162,-500.0,9.658e-05,2]
[401819627,1768381838171,-251.65679046,9.658e-05,2]
[401819628,1768381838180,-500.0,9.658e-05,2]
[401819629,1768381838188,-500.0,9.658e-05,2]
[401819630,1768381838197,-500.0,9.658e-05,2]
[401819631,1768381838206,-500.0,9.658e-05,2]
[401819632,1768381838215,-500.0,9.658e-05,2]
[401819633,1768381838224,-500.0,9.658e-05,2]
[401819634,1768381838235,-500.0,9.658e-05,2]
[401819635,1768381838245,-500.0,9.658e-05,2]
[401819636,1768381838254,-500.0,9.658e-05,2]
[401819637,1768381838264,-964.50758225,9.658e-05,2]
[401819638,1768381838273,-500.0,9.658e-05,2]
[401819639,1768381838283,-964.50758225,9.658e-05,2]
[401819640,1768381838292,-964.50758225,9.658e-05,2]
[401819641,1768381838302,-500.0,9.658e-05,2]
[401819642,1768381838438,-964.50758225,9.658e-05,2]
[401819643,1768381838447,-964.50758225,9.658e-05,2]
[401819644,1768381838457,-500.0,9.658e-05,2]
[401819645,1768381838467,-964.50758225,9.658e-05,2]
[401819646,1768381838476,-964.50758225,9.658e-05,2]
[401819647,1768381838486,-500.0,9.658e-05,2]
[401819648,1768381838495,-964.50758225,9.658e-05,2]
[401819649,1768381838505,-500.0,9.658e-05,2]
[401819650,1768381838514,-964.50758225,9.658e-05,2]
[401819651,1768381838523,-249.6343544,9.658e-05,2]
[401819652,1768381838533,-500.0,9.658e-05,2]
[401819653,1768381838542,-964.50758225,9.658e-05,2]
[401819654,1768381838551,-500.0,9.658e-05,2]
[401819655,1768381838561,-964.50758225,9.658e-05,2]
[401819656,1768381838570,-500.0,9.658e-05,2]
[401819657,1768381838579,-964.50758225,9.658e-05,2]
[401819658,1768381838588,-500.0,9.658e-05,2]
[401819659,1768381838598,-964.50758225,9.658e-05,2]
[401819660,1768381838607,-500.0,9.658e-05,2]
[401819661,1768381838616,-964.50758225,9.658e-05,2]
[401819662,1768381838626,-500.0,9.658e-05,2]
[401819663,1768381838635,-964.50758225,9.658e-05,2]
[401819664,1768381838644,-500.0,9.658e-05,2]
[401819665,1768381838653,-964.50758225,9.658e-05,2]
[401819666,1768381838662,-500.0,9.658e-05,2]
[401819667,1768381838672,-500.0,9.658e-05,2]
[401819668,1768381838681,-500.0,9.658e-05,2]
[401819669,1768381838690,-964.50758225,9.658e-05,2]
[401819670,1768381838699,-500.0,9.658e-05,2]
[401819671,1768381838708,-964.50758225,9.658e-05,2]
[401819672,1768381838717,-500.0,9.658e-05,2]
[401819673,1768381838727,-964.50758225,9.658e-05,2]
[401819674,1768381838736,-500.0,9.658e-05,2]
[401819675,1768381838745,-500.0,9.658e-05,2]
[401819676,1768381838754,-500.0,9.658e-05,2]
[401819677,1768381838763,-964.50758225,9.658e-05,2]
[401819678,1768381838772,-500.0,9.658e-05,2]
[401819679,1768381838781,-964.50758225,9.658e-05,2]
[401819680,1768381838790,-500.0,9.658e-05,2]
[401819681,1768381838800,-964.50758225,9.658e-05,2]
[401819682,1768381838809,-500.0,9.658e-05,2]
[401819683,1768381838817,-964.50758225,9.658e-05,2]
[401819684,1768381838827,-451.20505301,9.658e-05,2]
[401819685,1768381838835,-964.50758225,9.658e-05,2]
[401819686,1768381838844,-500.0,9.658e-05,2]
[401819687,1768381838853,-500.0,9.658e-05,2]
[401819688,1768381838863,-964.50758225,9.658e-05,2]
[401819689,1768381838872,-500.0,9.658e-05,2]
[401819690,1768381838881,-500.0,9.658e-05,2]
[401819691,1768381838890,-500.0,9.658e-05,2]
[401819692,1768381838899,-964.50758225,9.658e-05,2]
[401819693,1768381838908,-964.50758225,9.658e-05,2]
[401819694,1768381838917,-500.0,9.658e-05,2]
[401819695,1768381838927,-964.50758225,9.658e-05,2]
[401819696,1768381838936,-500.0,9.658e-05,2]
[401819697,1768381838946,-964.50758225,9.658e-05,2]
[401819698,1768381838955,-500.0,9.658e-05,2]
[401819699,1768381838966,-964.50758225,9.658e-05,2]
[401819700,1768381838975,-500.0,9.658e-05,2]
[401819701,1768381838984,-964.50758225,9.658e-05,2]
[401819702,1768381838994,-964.50758225,9.658e-05,2]
[401819703,1768381839003,-500.0,9.658e-05,2]
[401819704,1768381839013,-964.50758225,9.658e-05,2]
[401819705,1768381839023,-500.0,9.658e-05,2]
[401819706,1768381839034,-964.50758225,9.658e-05,2]
[401819707,1768381839043,-500.0,9.658e-05,2]
[401819708,1768381839053,-964.50758225,9.658e-05,2]
[401819709,1768381839063,-500.0,9.658e-05,2]
[401819710,1768381839072,-964.50758225,9.658e-05,2]
[401819711,1768381839083,-500.0,9.658e-05,2]
[401819712,1768381839092,-964.50758225,9.658e-05,2]
[401819713,1768381839101,-500.0,9.658e-05,2]
[401819714,1768381839112,-500.0,9.658e-05,2]
[401819715,1768381839121,-500.0,9.658e-05,2]
[401819716,1768381839130,-500.0,9.658e-05,2]
[401819717,1768381839140,-964.50758225,9.658e-05,2]
[401819718,1768381839149,-964.50758225,9.658e-05,2]
[401819719,1768381839158,-500.0,9.658e-05,2]
[401819720,1768381839167,-964.50758225,9.658e-05,2]
[401819721,1768381839176,-500.0,9.658e-05,2]
[401819722,1768381839186,-964.50758225,9.658e-05,2]
[401819723,1768381839195,-500.0,9.658e-05,2]
[401819724,1768381839204,-964.50758225,9.658e-05,2]
[401819725,1768381839213,-500.0,9.658e-05,2]
[401819726,1768381839223,-964.50758225,9.658e-05,2]
[401819727,1768381839232,-964.50758225,9.658e-05,2]
[401819728,1768381839242,-964.50758225,9.658e-05,2]
[401819729,1768381839251,-964.50758225,9.658e-05,2]
[401819730,1768381839261,-964.50758225,9.658e-05,2]
[401819731,1768381839270,-949.5806792,9.658e-05,2]
[401819732,1768381839279,-949.5806792,9.658e-05,2]
[401819733,1768381839290,-949.5806792,9.658e-05,2]
[401819734,1768381839299,-949.5806792,9.658e-05,2]
[401819735,1768381839309,-949.5806792,9.658e-05,2]
[401819736,1768381839318,-949.5806792,9.658e-05,2]
[401819737,1768381839327,-949.5806792,9.658e-05,2]
[401819738,1768381839336,-949.5806792,9.658e-05,2]
[401819739,1768381839346,-500.0,9.658e-05,2]
[401819740,1768381839355,-649.99999999,9.658e-05,2]
[401819741,1768381839364,-949.5806792,9.658e-05,2]
[401819742,1768381839374,-949.5806792,9.658e-05,2]
[401819743,1768381839384,-500.0,9.658e-05,2]
[401819745,1768381839393,-949.5806792,9.658e-05,2]
[401819746,1768381839403,-500.0,9.658e-05,2]
[401819747,1768381839414,-949.5806792,9.658e-05,2]
[401819748,1768381839424,-949.5806792,9.658e-05,2]
[401819749,1768381839433,-500.0,9.658e-05,2]
[401819750,1768381839442,-949.5806792,9.658e-05,2]
[401819751,1768381839451,-949.5806792,9.658e-05,2]
[401819752,1768381839461,-500.0,9.658e-05,2]
[401819753,1768381839470,-949.5806792,9.658e-05,2]
[401819754,1768381839479,-949.5806792,9.658e-05,2]
[401819755,1768381839489,-949.5806792,9.658e-05,2]
[401819756,1768381839497,-949.5806792,9.658e-05,2]
[401819757,1768381839506,-949.5806792,9.658e-05,2]
[401819758,1768381839515,-949.5806792,9.658e-05,2]
[401819759,1768381839524,-949.5806792,9.658e-05,2]
[401819760,1768381839533,-949.5806792,9.658e-05,2]
[401819761,1768381839542,-949.58067919,9.658e-05,2]
[401819762,1768381839552,-1000000.0,9.659e-05,2]
[401819763,1768381839561,-392.24,9.7e-05,2]
[401819764,1768381839571,-151.88,9.759e-05,2]
[401819765,1768381839580,-500.0,9.76e-05,2]
[401819766,1768381839589,-500.0,9.76e-05,2]
[401819767,1768381839598,-500.0,9.762e-05,2]
[401819768,1768381839607,-500.0,9.762e-05,2]
[401819769,1768381839616,-500.0,9.762e-05,2]
[401819770,1768381839626,-500.0,9.762e-05,2]
[401819771,1768381839635,-500.0,9.762e-05,2]
[401819772,1768381839644,-500.0,9.762e-05,2]
[401819773,1768381839652,-500.0,9.762e-05,2]
[401819774,1768381839661,-500.0,9.762e-05,2]
[401819775,1768381839671,-500.0,9.762e-05,2]
[401819776,1768381839680,-500.0,9.762e-05,2]
[401819777,1768381839689,-500.0,9.762e-05,2]
[401819778,1768381839698,-500.0,9.762e-05,2]
[401819779,1768381839707,-500.0,9.762e-05,2]
[401819780,1768381839715,-500.0,9.762e-05,2]
[401819781,1768381839724,-6991.49936946,9.762e-05,2]
[401819782,1768381839733,-500.0,9.897e-05,2]
[401819783,1768381839742,-500.0,9.897e-05,2]
[401819784,1768381839751,-500.0,9.932e-05,2]
[401819786,1768381839761,-300.0,9.956e-05,2]
[401819787,1768381839770,-300.0,9.956e-05,2]
[401819788,1768381839778,-300.0,9.956e-05,2]
[401819789,1768381839788,-300.0,9.956e-05,2]
[401819790,1768381839797,-300.0,9.956e-05,2]
[401819791,1768381839806,-300.0,9.956e-05,2]
[401819792,1768381839815,-300.0,9.956e-05,2]
[401819794,1768381839824,-300.0,9.956e-05,2]
[401819796,1768381839833,-300.0,9.956e-05,2]
[401819798,1768381839843,-300.0,9.956e-05,2]
[401819800,1768381839853,-300.0,9.956e-05,2]
[401819803,1768381839863,-300.0,9.956e-05,2]
[401819805,1768381839873,-300.0,9.956e-05,2]
[401819806,1768381839882,-300.0,9.956e-05,2]
[401819808,1768381839891,-300.0,9.956e-05,2]
[401819810,1768381839900,-600.0,9.956e-05,2]
[401819812,1768381839909,-151.0,0.0001,2]
[401819814,1768381839919,-192.85417081,0.0001,2]
[401819816,1768381839928,-6991.49936942,0.00010028,2]
[401819818,1768381839937,-151.88,0.00010033,2]
[401819820,1768381839946,-603.10014779,0.00010034,2]
[401819822,1768381839955,-500.0,0.00010034,2]
[401819824,1768381839964,-1738.62,0.000101,2]
[401819826,1768381839973,-233.31,0.000101,2]
[401819828,1768381839982,-200.0,0.00010171,2]
[401819830,1768381839992,-500.0,0.00010171,2]
[401819832,1768381840001,-500.0,0.00010206,2]
[401819834,1768381840014,-151.89,0.00010307,2]
[401819837,1768381840024,-175.48644191,0.00010308,2]
[401819838,1768381840036,-1170.19,0.00010363,2]
[401819840,1768381840045,-500.0,0.00010372,2]
[401819843,1768381840054,-500.0,0.00010372,2]
[401819844,1768381840063,-500.0,0.00010372,2]
[401819846,1768381840073,-500.0,0.00010372,2]
[401819848,1768381840082,-6991.49936942,0.00010394,2]
[401819850,1768381840091,-17699.1889073,0.00010421,2]
[401819852,1768381840100,-500.0,0.00010463,2]
[401819854,1768381840110,-500.0,0.00010463,2]
[401819856,1768381840118,-500.0,0.00010463,2]
[401819858,1768381840127,-500.0,0.00010463,2]
[401819860,1768381840136,-500.0,0.00010463,2]
[401819862,1768381840146,-500.0,0.00010463,2]
[401819864,1768381840155,-500.0,0.00010463,2]
[401819866,1768381840163,-500.0,0.00010463,2]
[401819868,1768381840172,-500.0,0.0001048,2]
[401819870,1768381840182,-500.0,0.00010509,2]
[401819872,1768381840191,-500.0,0.00010509,2]
[401819875,1768381840201,-500.0,0.00010509,2]
[401819877,1768381840212,-500.0,0.00010509,2]
[401819879,1768381840222,-283.83301289,0.00010509,2]
[401819881,1768381840231,-500.0,0.000106,2]
[401819883,1768381840241,-500.0,0.000106,2]
[401819885,1768381840250,-500.0,0.000106,2]
[401819887,1768381840259,-500.0,0.000106,2]
[401819889,1768381840269,-500.0,0.000106,2]
[401819890,1768381840279,-500.0,0.000106,2]
[401819893,1768381840289,-500.0,0.000106,2]
[401819895,1768381840299,-500.0,0.000106,2]
[401819897,1768381840308,-1738.62,0.000106,2]
[401819899,1768381840317,-233.31,0.000106,2]
[401819900,1768381840326,-420.0,0.00010623,2]
[401819902,1768381840336,-420.0,0.00010623,2]
[401819905,1768381840346,-1680.0,0.00010623,2]
[401819907,1768381840355,-240.44633049,0.00010646,2]
[401819908,1768381840365,-500.0,0.00010646,2]
[401819910,1768381840375,-500.0,0.00010646,2]
[401819913,1768381840385,-500.0,0.00010646,2]
[401819915,1768381840394,-500.0,0.00010678,2]
[401819917,1768381840404,-500.0,0.00010678,2]
[401819919,1768381840414,-908.0,0.00010678,2]
[401819921,1768381840423,-500.0,0.00010678,2]
[401819922,1768381840433,-500.0,0.00010678,2]
[401819925,1768381840444,-452.0,0.00010678,2]
[401819926,1768381840453,-500.0,0.00010737,2]
[401819929,1768381840462,-500.88218581,0.00010737,2]
[401819930,1768381840471,-500.0,0.00010737,2]
[401819933,1768381840481,-500.0,0.00010737,2]
[401819934,1768381840492,-500.0,0.00010737,2]
[401819937,1768381840502,-500.0,0.00010737,2]
[401819939,1768381840512,-500.0,0.00010737,2]
[401819941,1768381840522,-500.0,0.00010737,2]
[401819943,1768381840532,-500.0,0.00010754,2]
[401819945,1768381840541,-6991.49936942,0.0001076,2]
[401819947,1768381840550,-500.0,0.00010783,2]
[401819949,1768381840559,-500.0,0.00010783,2]
[401819950,1768381840568,-500.0,0.00010815,2]
[401819953,1768381840577,-500.0,0.00010815,2]
[401819954,1768381840587,-908.0,0.00010815,2]
[401819956,1768381840596,-500.0,0.00010815,2]
[401819959,1768381840606,-500.0,0.00010815,2]
[401819961,1768381840615,-452.0,0.00010815,2]
[401819963,1768381840625,-366.99002628,0.00010874,2]
[401819974,1768381840736,-500.0,0.00010874,2]
[401819976,1768381840747,-500.0,0.00010874,2]
[401819978,1768381840756,-450.0,0.00010874,2]
[401819980,1768381840765,-500.0,0.00010874,2]
[401819982,1768381840774,-407.49285757,0.00010874,2]
[401819984,1768381840783,-300.0,0.0001092,2]
[401819986,1768381840792,-500.0,0.0001092,2]
[401819988,1768381840802,-500.0,0.00010952,2]
[401819990,1768381840812,-500.0,0.00010952,2]
[401819992,1768381840821,-908.0,0.00010952,2]
[401819994,1768381840830,-500.0,0.00010952,2]
[401819996,1768381840838,-500.0,0.00010952,2]
[401819998,1768381840847,-200.0,0.00010952,2]
[401820000,1768381840858,-452.0,0.00010952,2]
[401820002,1768381840868,-200.0,0.00010952,2]
[401820004,1768381840877,-720.0,0.00010952,2]
[401820006,1768381840887,-1500.0,0.00010959,2]
[401820008,1768381840896,-151.0,0.00011,2]
[401820010,1768381840906,-151.0,0.00011,2]
[401820012,1768381840916,-151.0,0.00011,2]
[401820014,1768381840925,-151.0,0.00011,2]
[401820016,1768381840934,-151.0,0.00011,2]
[401820018,1768381840944,-151.0,0.00011,2]
[401820020,1768381840955,-151.0,0.00011,2]
[401820023,1768381840965,-151.0,0.00011,2]
[401820025,1768381840974,-151.0,0.00011,2]
[401820027,1768381840985,-151.0,0.00011,2]
[401820029,1768381840995,-151.0,0.00011,2]
[401820031,1768381841004,-500.0,0.00011011,2]
[401820032,1768381841014,-233.98664865,0.00011011,2]
[401820035,1768381841024,-450.0,0.00011011,2]
[401820036,1768381841033,-500.0,0.00011028,2]
[401820038,1768381841044,-11367.44254566,0.0001103,2]
[401820040,1768381841053,-622.17092249,0.00011057,2]
[401820043,1768381841063,-500.0,0.00011089,2]
[401820044,1768381841073,-908.0,0.00011089,2]
[401820046,1768381841083,-500.0,0.00011089,2]
[401820049,1768381841092,-580.25340699,0.00011089,2]
[401820051,1768381841101,-452.0,0.00011089,2]
[401820052,1768381841112,-151.0,0.000111,2]
[401820055,1768381841122,-6991.49936942,0.00011126,2]
[401820057,1768381841132,-500.0,0.00011148,2]
[401820059,1768381841142,-1738.62,0.000112,2]
[401820061,1768381841151,-233.31,0.000112,2]
[401820062,1768381841160,-500.0,0.00011226,2]
[401820064,1768381841169,-908.0,0.00011226,2]
[401820066,1768381841180,-500.0,0.00011226,2]
[401820068,1768381841189,-452.0,0.00011226,2]
[401820071,1768381841198,-500.0,0.00011285,2]
[401820073,1768381841208,-151.0,0.000113,2]
[401820074,1768381841217,-500.0,0.00011302,2]
[401820076,1768381841227,-500.0,0.00011363,2]
[401820078,1768381841238,-908.0,0.00011363,2]
[401820081,1768381841248,-151.23570132,0.00011363,2]
[401820082,1768381841257,-500.0,0.00011363,2]
[401820084,1768381841270,-452.0,0.00011363,2]
[401820086,1768381841280,-151.0,0.000114,2]
[401820089,1768381841290,-500.0,0.000115,2]
[401820090,1768381841299,-908.0,0.000115,2]
[401820093,1768381841308,-500.0,0.000115,2]
[401820094,1768381841317,-452.0,0.000115,2]
[401820095,1768381841326,-151.0,0.000115,2]
[401820096,1768381841335,-500.0,0.00011576,2]
[401820097,1768381841345,-768.96822684,0.00011584,2]
[401820098,1768381841354,-908.0,0.00011637,2]
[401820099,1768381841364,-500.0,0.00011637,2]
[401820100,1768381841373,-428.44929732,0.00011637,2]
[401820101,1768381841381,-452.0,0.00011637,2]
[401820102,1768381841390,-587.0,0.00011685,2]
[401820103,1768381841400,-587.0,0.00011685,2]
[401820104,1768381841409,-2351.0,0.00011685,2]
[401820105,1768381841419,-1738.62,0.000117,2]
[401820106,1768381841429,-151.0,0.000117,2]
[401820107,1768381841438,-233.31,0.000117,2]
[401820108,1768381841448,-908.0,0.00011774,2]
[401820109,1768381841458,-410.85131619,0.00011774,2]
[401820110,1768381841467,-452.0,0.00011774,2]
[401820111,1768381841479,-151.0,0.000118,2]
[401820112,1768381841492,-500.0,0.0001185,2]
[401820113,1768381841502,-151.0,0.000119,2]
[401820114,1768381841511,-908.0,0.00011911,2]
[401820115,1768381841520,-452.0,0.00011911,2]
[401820116,1768381841533,-864.0,0.00012047,2]
[401820117,1768381841542,-908.0,0.00012048,2]
[401820118,1768381841552,-452.0,0.00012048,2]
[401820120,1768381841563,-210.35,0.0001206,2]
[401820122,1768381841572,-151.0,0.000121,2]
[401820124,1768381841582,-199.94013067,0.00012111,2]
[401820126,1768381841591,-500.0,0.00012124,2]
[401820128,1768381841601,-908.0,0.00012185,2]
[401820130,1768381841610,-452.0,0.00012185,2]
[401820132,1768381841619,-2017.55934077,0.00012185,2]
[401820134,1768381841629,-1738.62,0.000122,2]
[401820136,1768381841640,-151.0,0.000122,2]
[401820138,1768381841649,-233.31,0.000122,2]
[401820140,1768381841658,-908.0,0.00012322,2]
[401820142,1768381841668,-452.0,0.00012322,2]
[401820144,1768381841680,-5185.6,0.00012329,2]
[401820146,1768381841690,-4636.54,0.00012329,2]
[401820148,1768381841699,-3863.78,0.00012329,2]
[401820150,1768381841709,-3219.82,0.00012329,2]
[401820152,1768381841718,-2683.18,0.00012329,2]
[401820154,1768381841727,-2235.99,0.00012329,2]
[401820156,1768381841739,-1863.32,0.00012329,2]
[401820158,1768381841748,-1552.77,0.00012329,2]
[401820160,1768381841757,-1293.97,0.00012329,2]
[401820162,1768381841766,-1078.31,0.00012329,2]
[401820164,1768381841775,-898.59,0.00012329,2]
[401820167,1768381841784,-748.83,0.00012329,2]
[401820168,1768381841793,-624.02,0.00012329,2]
[401820171,1768381841802,-520.02,0.00012329,2]
[401820173,1768381841814,-433.35,0.00012329,2]
[401820174,1768381841825,-361.12,0.00012329,2]
[401820176,1768381841834,-300.94,0.00012329,2]
[401820178,1768381841844,-250.78,0.00012329,2]
[401820181,1768381841853,-208.98,0.00012329,2]
[401820183,1768381841862,-174.15,0.00012329,2]
[401820184,1768381841871,-870.8,0.00012329,2]
[401820187,1768381841880,-500.0,0.00012329,2]
[401820188,1768381841891,-500.0,0.00012329,2]
[401820191,1768381841900,-500.0,0.00012329,2]
[401820193,1768381841909,-500.0,0.00012329,2]
[401820195,1768381841919,-500.0,0.00012329,2]
[401820197,1768381841929,-500.0,0.00012329,2]
[401820199,1768381841940,-500.0,0.00012329,2]
[401820201,1768381841949,-500.0,0.00012329,2]
[401820203,1768381841959,-500.0,0.00012329,2]
[401820205,1768381841969,-500.0,0.00012329,2]
[401820207,1768381841979,-500.0,0.00012329,2]
[401820209,1768381841991,-300.00000002,0.00012329,2]
[401820211,1768381842001,-500.0,0.00012329,2]
[401820213,1768381842010,-1234.55041115,0.00012329,2]
[401820215,1768381842019,-1234.55041115,0.00012329,2]
[401820217,1768381842033,-1234.55041115,0.00012329,2]
[401820219,1768381842043,-1234.55041115,0.00012329,2]
[401820221,1768381842052,-1234.55041115,0.00012329,2]
[401820223,1768381842061,-1234.55041115,0.00012329,2]
[401820225,1768381842072,-1234.55041115,0.00012329,2]
[401820227,1768381842081,-1234.55041115,0.00012329,2]
[401820229,1768381842089,-1234.55041115,0.00012329,2]
[401820231,1768381842099,-1234.55041115,0.00012329,2]
[401820233,1768381842109,-1234.55041115,0.00012329,2]
[401820235,1768381842119,-1234.55041115,0.00012329,2]
[401820237,1768381842127,-1234.55041115,0.00012329,2]
[401820239,1768381842137,-1234.55041115,0.00012329,2]
[401820241,1768381842147,-1234.55041115,0.00012329,2]
[401820243,1768381842156,-1234.55041115,0.00012329,2]
[401820245,1768381842166,-1234.55041115,0.00012329,2]
[401820247,1768381842175,-1234.55041115,0.00012329,2]
[401820249,1768381842184,-1234.55041115,0.00012329,2]
[401820251,1768381842194,-1234.55041115,0.00012329,2]
[401820253,1768381842203,-1234.55041115,0.00012329,2]
[401820255,1768381842212,-1234.55041115,0.00012329,2]
[401820257,1768381842221,-1234.55041115,0.00012329,2]
[401820259,1768381842230,-1234.55041115,0.00012329,2]
[401820261,1768381842242,-1234.55041115,0.00012329,2]
[401820263,1768381842251,-1234.55041115,0.00012329,2]
[401820265,1768381842261,-1234.55041115,0.00012329,2]
[401820266,1768381842271,-1234.55041115,0.00012329,2]
[401820269,1768381842281,-1234.55041115,0.00012329,2]
[401820271,1768381842292,-1234.55041115,0.00012329,2]
[401820273,1768381842302,-1234.55041115,0.00012329,2]
[401820275,1768381842313,-1234.55041115,0.00012329,2]
[401820277,1768381842323,-1234.55041115,0.00012329,2]
[401820279,1768381842333,-1234.55041115,0.00012329,2]
[401820281,1768381842343,-1234.55041115,0.00012329,2]
[401820283,1768381842352,-1234.55041115,0.00012329,2]
[401820284,1768381842363,-1234.55041115,0.00012329,2]
[401820286,1768381842373,-1234.55041115,0.00012329,2]
[401820289,1768381842385,-1234.55041115,0.00012329,2]
[401820291,1768381842395,-1234.55041115,0.00012329,2]
[401820293,1768381842406,-1234.55041115,0.00012329,2]
[401820295,1768381842417,-1234.55041115,0.00012329,2]
[401820297,1768381842427,-1234.55041115,0.00012329,2]
[401820299,1768381842437,-1234.55041115,0.00012329,2]
[401820301,1768381842447,-1234.55041115,0.00012329,2]
[401820303,1768381842458,-1234.55041115,0.00012329,2]
[401820306,1768381842468,-1234.55041115,0.00012329,2]
[401820309,1768381842487,-1234.55041115,0.00012329,2]
[401820312,1768381842511,-1234.55041115,0.00012329,2]
[401820314,1768381842526,-1234.55041115,0.00012329,2]
[401820316,1768381842536,-1234.55041115,0.00012329,2]
[401820318,1768381842546,-1234.55041115,0.00012329,2]
[401820319,1768381842558,-1234.55041115,0.00012329,2]
[401820322,1768381842569,-1210.11660094,0.00012329,2]
[401820323,1768381842580,-1210.11660094,0.00012329,2]
[401820325,1768381842590,-1210.11660094,0.00012329,2]
[401820327,1768381842600,-1210.11660094,0.00012329,2]
[401820329,1768381842611,-1210.11660094,0.00012329,2]
[401820331,1768381842623,-1210.11660094,0.00012329,2]
[401820334,1768381842636,-1210.11660094,0.00012329,2]
[401820335,1768381842647,-1210.11660094,0.00012329,2]
[401820337,1768381842669,-1210.11660094,0.00012329,2]
[401820339,1768381842689,-1210.11660094,0.00012329,2]
[401820342,1768381842705,-1210.11660094,0.00012329,2]
[401820344,1768381842716,-1210.11660094,0.00012329,2]
[401820345,1768381842725,-1210.11660094,0.00012329,2]
[401820347,1768381842735,-1210.11660094,0.00012329,2]
[401820350,1768381842748,-1210.11660094,0.00012329,2]
[401820351,1768381842759,-1210.11660094,0.00012329,2]
[401820353,1768381842770,-1210.11660094,0.00012329,2]
[401820355,1768381842781,-1210.11660094,0.00012329,2]
[401820357,1768381842791,-1210.11660094,0.00012329,2]